bitfinex-derivatives/quotes_SOLF0:USTF0_20250425
["timestamp","ask_amount","ask_price","bid_price","bid_amount"]
[1745558310498,6.5924,151.65,151.62,11.86041779]
[1745558314402,30.0317,151.66,151.62,11.86041779]
[1745558314603,6.5917,151.66,151.64,5.26711779]
[1745558315401,5.26711779,151.67,151.59,5.7534]
[1745558315601,5.26711779,151.65,151.6,5.26711779]
[1745558315805,6.5932,151.63,151.59,12.3477]
[1745558316001,28.70711779,151.65,151.6,5.26711779]
[1745558316305,6.5931,151.63,151.59,12.3477]
[1745558316495,6.5931,151.63,151.6,5.26711779]
[1745558322407,6.5926,151.64,151.6,11.86111779]
[1745558322708,28.70711779,151.65,151.6,11.86111779]
[1745558323208,28.70711779,151.65,151.6,6.594]
[1745558323409,28.70711779,151.65,151.6,11.86111779]
[1745558323606,6.5925,151.64,151.62,5.26711779]
[1745558325309,30.0321,151.65,151.62,5.26711779]
[1745558326012,6.5921,151.65,151.62,5.26711779]
[1745558326309,6.5924,151.64,151.62,5.26711779]
[1745558328811,6.5921,151.65,151.62,5.26711779]
[1745558338321,6.5925,151.64,151.62,5.26711779]
[1745558339017,6.5925,151.64,151.61,6.5936]
[1745558339320,6.5925,151.64,151.62,5.26711779]
[1745558340520,6.5921,151.65,151.62,5.26711779]
[1745558340820,23.44,151.67,151.62,5.26711779]
[1745558341520,6.5919,151.66,151.62,11.86031779]
[1745558341713,6.5919,151.66,151.64,5.26711779]
[1745558342523,23.44,151.67,151.64,5.26711779]
[1745558343425,30.0314,151.67,151.64,11.85951779]
[1745558345324,6.5905,151.69,151.66,5.26711779]
[1745558345718,23.44,151.7,151.68,5.26711779]
[1745558345920,30.0298,151.7,151.68,5.26711779]
[1745558347929,6.5902,151.69,151.68,5.26711779]
[1745558348731,6.5908,151.68,151.64,6.5922]
[1745558348931,23.44,151.7,151.66,5.26711779]
[1745558349332,6.5911,151.68,151.66,5.26711779]
[1745558351334,6.5903,151.69,151.66,5.26711779]
[1745558351533,6.5903,151.69,151.68,5.26711779]
[1745558354637,23.42,151.73,151.68,5.26711779]
[1745558355234,23.42,151.73,151.7,5.26711779]
[1745558357239,6.5894,151.71,151.7,5.26711779]
[1745558358038,6.5903,151.69,151.68,5.26711779]
[1745558366544,6.5899,151.7,151.68,5.26711779]
[1745558366744,23.42,151.73,151.68,11.85771779]
[1745558366946,23.42,151.73,151.7,5.26711779]
[1745558367141,23.42,151.76,151.72,5.26711779]
[1745558367743,6.5881,151.74,151.72,5.26711779]
[1745558367947,23.42,151.76,151.72,5.26711779]
[1745558368243,6.5884,151.74,151.72,5.26711779]
[1745558371151,23.42,151.76,151.72,5.26711779]
[1745558371446,23.42,151.76,151.74,5.26711779]
[1745558372240,30.0075,151.76,151.74,5.26711779]
[1745558373452,6.5876,151.75,151.74,5.26711779]
[1745558374653,30.0073,151.76,151.74,5.26711779]
[1745558375159,23.42,151.76,151.72,5.26711779]
[1745558375854,6.5881,151.74,151.72,5.26711779]
[1745558377154,23.42,151.76,151.72,5.26711779]
[1745558377155,6.5878,151.75,151.72,5.26711779]
[1745558378359,6.5882,151.74,151.72,5.26711779]
[1745558379261,6.5885,151.73,151.72,5.26711779]
[1745558379559,6.5885,151.73,151.7,5.26711779]
[1745558379863,6.5882,151.74,151.7,5.26711779]
[1745558380053,6.5882,151.74,151.72,5.26711779]
[1745558380360,23.42,151.76,151.72,5.26711779]
[1745558381264,30.0075,151.76,151.72,11.85601779]
[1745558382864,6.5877,151.75,151.72,11.85601779]
[1745558383264,6.5877,151.75,151.72,5.26711779]
[1745558384166,6.5877,151.75,151.72,11.85601779]
[1745558384767,6.5881,151.74,151.72,5.26711779]
[1745558384968,5.26711779,151.77,151.72,5.26711779]
[1745558386069,6.5885,151.74,151.72,5.26711779]
[1745558387168,6.5885,151.73,151.72,5.26711779]
[1745558387369,5.26711779,151.77,151.72,5.26711779]
[1745558387669,5.26711779,151.77,151.7,5.26711779]
[1745558387864,5.26711779,151.75,151.7,5.26711779]
[1745558388669,6.5887,151.73,151.7,11.85681779]
[1745558390070,6.5878,151.75,151.72,5.26711779]
[1745558390270,5.26711779,151.77,151.72,5.26711779]
[1745558390671,6.5878,151.75,151.72,5.26711779]
[1745558391573,6.5881,151.74,151.72,5.26711779]
[1745558392070,6.5878,151.75,151.72,11.85601779]
[1745558394774,6.5882,151.74,151.72,5.26711779]
[1745558394977,5.26711779,151.77,151.7,5.26711779]
[1745558395674,6.5891,151.72,151.7,5.26711779]
[1745558396175,6.5894,151.71,151.68,13.77031779]
[1745558396375,6.5894,151.71,151.68,11.85741779]
[1745558396576,23.42,151.74,151.68,11.85741779]
[1745558396778,6.5891,151.72,151.68,11.85741779]
[1745558398979,6.5894,151.71,151.68,11.85741779]
[1745558399379,23.42,151.74,151.68,11.85741779]
[1745558400282,6.5888,151.73,151.69,6.59]
[1745558400683,23.42,151.74,151.69,6.59]
[1745558400981,6.5892,151.72,151.68,11.85771779]
[1745558403481,6.5892,151.72,151.69,6.5901]
[1745558403785,6.5886,151.73,151.69,6.5901]
[1745558404181,35.27551779,151.74,151.7,11.85671779]
[1745558404489,23.42,151.74,151.72,5.26711779]
[1745558404683,6.5877,151.75,151.72,11.85601779]
[1745558404889,23.4,151.77,151.72,11.85601779]
[1745558406290,6.5877,151.75,151.72,11.85601779]
[1745558408687,6.5877,151.75,151.74,5.26711779]
[1745558417498,6.5874,151.76,151.74,5.26711779]
[1745558419097,23.4,151.77,151.74,5.26711779]
[1745558420297,6.5872,151.76,151.74,5.26711779]
[1745558423895,5.26711779,151.8,151.74,5.26711779]
[1745558424200,23.4,151.81,151.78,5.26711779]
[1745558425398,29.9852,151.81,151.78,5.26711779]
[1745558425896,23.4,151.81,151.78,5.26711779]
[1745558426201,5.26711779,151.8,151.75,7.11281779]
[1745558426495,6.5871,151.77,151.75,7.11281779]
[1745558428199,6.5872,151.76,151.75,7.11281779]
[1745558433409,6.5872,151.76,151.75,5.26711779]
[1745558433612,6.5869,151.77,151.75,5.26711779]
[1745558434008,23.4,151.81,151.75,5.26711779]
[1745558434209,6.5862,151.79,151.78,5.26711779]
[1745558437217,6.5856,151.8,151.78,5.26711779]
[1745558437716,6.5859,151.79,151.78,5.26711779]
[1745558438218,23.4,151.81,151.78,5.26711779]
[1745558438418,6.5856,151.8,151.78,5.26711779]
[1745558439614,29.9851,151.81,151.78,5.26711779]
[1745558439819,6.5851,151.81,151.78,5.26711779]
[1745558440119,23.76648,151.84,151.8,5.26711779]
[1745558440617,23.76648,151.84,151.82,5.26711779]
[1745558441018,0.36648,151.84,151.82,5.26711779]
[1745558441214,6.5843,151.83,151.82,5.26711779]
[1745558441618,0.36648,151.84,151.82,5.26711779]
[1745558442018,6.95048,151.84,151.82,5.26711779]
[1745558443422,6.5842,151.83,151.82,5.26711779]
[1745558445023,6.5848,151.82,151.8,7.27331779]
[1745558447025,0.36648,151.84,151.8,7.27331779]
[1745558447524,6.5849,151.82,151.8,7.27331779]
[1745558448323,6.5843,151.83,151.8,7.27331779]
[1745558448623,6.5843,151.83,151.82,5.26711779]
[1745558460328,23.4,151.87,151.82,5.26711779]
[1745558461134,6.5838,151.84,151.82,5.26711779]
[1745558463438,6.5834,151.85,151.82,5.26711779]
[1745558464039,23.4,151.87,151.82,5.26711779]
[1745558464637,5.26711779,151.86,151.8,7.27331779]
[1745558465138,6.5849,151.82,151.8,7.27331779]
[1745558465837,6.5843,151.83,151.8,7.27331779]
[1745558467036,5.26711779,151.82,151.78,5.26711779]
[1745558467236,5.26711779,151.82,151.77,5.26711779]
[1745558468139,6.5859,151.8,151.77,5.26711779]
[1745558468640,6.586,151.79,151.77,5.26711779]
[1745558468839,5.26711779,151.82,151.77,5.26711779]
[1745558469241,6.5858,151.8,151.77,5.26711779]
[1745558469440,5.26711779,151.82,151.77,5.26711779]
[1745558469741,6.5859,151.8,151.77,5.26711779]
[1745558470039,6.5859,151.8,151.76,23.38]
[1745558470040,5.26711779,151.8,151.76,28.64711779]
[1745558470239,5.26711779,151.78,151.73,23.38]
[1745558470437,6.5872,151.76,151.72,366.85571779]
[1745558470641,5.26711779,151.78,151.72,5.26711779]
[1745558472044,5.26711779,151.76,151.7,25.3235]
[1745558472244,5.26711779,151.74,151.7,25.3235]
[1745558472444,6.589,151.72,151.7,1.9435]
[1745558478645,6.5886,151.73,151.7,1.9435]
[1745558479646,6.5889,151.72,151.7,1.9435]
[1745558480347,6.5885,151.73,151.7,1.9435]
[1745558484256,5.26711779,151.74,151.69,5.26711779]
[1745558484855,6.5893,151.72,151.67,35.23781779]
[1745558485356,6.5893,151.72,151.68,6.5906]
[1745558485550,6.5893,151.72,151.69,5.26711779]
[1745558486253,6.5894,151.71,151.69,5.26711779]
[1745558486853,6.5894,151.71,151.67,35.23811779]
[1745558487752,6.59,151.7,151.67,28.64711779]
[1745558487957,5.26711779,151.7,151.65,9.13121779]
[1745558488553,6.5907,151.68,151.65,9.13121779]
[1745558488856,5.26711779,151.68,151.64,29.9921]
[1745558489252,11.85801779,151.68,151.64,29.9921]
[1745558489754,6.5916,151.66,151.64,23.4]
[1745558490057,6.5916,151.66,151.61,28.66711779]
[1745558490253,5.26711779,151.66,151.61,28.66711779]
[1745558490459,6.5923,151.65,151.61,35.26071779]
[1745558491153,23.4,151.67,151.58,5.8348]
[1745558491154,5.26711779,151.62,151.58,5.26711779]
[1745558491352,28.66711779,151.64,151.58,5.26711779]
[1745558491549,6.5929,151.63,151.59,6.5943]
[1745558491758,5.26711779,151.64,151.6,5.26711779]
[1745558492150,5.26711779,151.64,151.6,11.86121779]
[1745558492349,23.4,151.65,151.6,5.26711779]
[1745558493061,29.9923,151.65,151.61,6.5936]
[1745558493561,6.5924,151.64,151.61,6.5936]
[1745558493757,6.5924,151.64,151.6,11.86111779]
[1745558494058,23.4,151.65,151.6,5.26711779]
[1745558494860,5.26711779,151.64,151.6,5.26711779]
[1745558496164,11.85981779,151.64,151.6,11.86121779]
[1745558496363,5.26711779,151.64,151.6,5.26711779]
[1745558497160,6.593,151.63,151.6,5.26711779]
[1745558497660,835.2475,151.73,151.62,5.26711779]
[1745558497869,5.26711779,151.69,151.64,5.26711779]
[1745558498366,6.5914,151.67,151.64,5.26711779]
[1745558499364,6.5914,151.67,151.64,11.85951779]
[1745558499663,6.5914,151.67,151.64,5.26711779]
[1745558499964,6.5916,151.66,151.64,5.26711779]
[1745558500368,6.5911,151.67,151.64,5.26711779]
[1745558501568,6.5916,151.66,151.61,25.324]
[1745558501872,6.5916,151.66,151.63,5.26711779]
[1745558502067,6.5924,151.64,151.63,5.26711779]
[1745558502277,5.26711779,151.66,151.61,25.324]
[1745558502462,5.26711779,151.66,151.61,30.59111779]
[1745558502873,6.5927,151.64,151.61,30.59111779]
[1745558503370,28.66711779,151.68,151.63,5.26711779]
[1745558503568,6.5922,151.65,151.63,5.26711779]
[1745558505471,6.5924,151.64,151.63,5.26711779]
[1745558507072,5.26711779,151.66,151.61,7.19111779]
[1745558507370,5.26711779,151.66,151.6,7.14811779]
[1745558508973,5.26711779,151.66,151.62,5.26711779]
[1745558509571,6.5921,151.65,151.62,5.26711779]
[1745558510268,6.5916,151.66,151.62,5.26711779]
[1745558510474,28.66711779,151.68,151.62,11.86011779]
[1745558510876,6.5918,151.66,151.62,11.86011779]
[1745558512880,6.5918,151.66,151.63,6.5928]
[1745558513177,6.5918,151.66,151.62,5.26711779]
[1745558513876,6.5918,151.66,151.62,11.86011779]
[1745558514177,6.5918,151.66,151.62,5.26711779]
[1745558514977,6.5918,151.66,151.62,11.86031779]
[1745558515178,6.592,151.65,151.62,5.26711779]
[1745558516282,6.592,151.65,151.62,11.86041779]
[1745558517184,6.592,151.65,151.62,5.26711779]
[1745558517382,6.5925,151.64,151.62,5.26711779]
[1745558519082,6.5925,151.64,151.6,8.475]
[1745558519284,6.5925,151.64,151.61,5.26711779]
[1745558519779,6.5937,151.61,151.58,28.66711779]
[1745558520178,5.26711779,151.62,151.57,1.9904]
[1745558520483,23.4,151.64,151.56,7.26761779]
[1745558520484,28.66711779,151.64,151.58,5.26711779]
[1745558520683,6.5931,151.63,151.59,6.5941]
[1745558521779,6.5931,151.63,151.6,6.5941]
[1745558522386,6.5931,151.63,151.59,6.5943]
[1745558523486,6.5933,151.62,151.59,6.5943]
[1745558524590,6.5933,151.62,151.58,11.86201779]
[1745558524889,6.5933,151.62,151.58,5.26711779]
[1745558526085,6.593,151.63,151.59,6.5946]
[1745558526890,6.593,151.63,151.6,11.86121779]
[1745558528290,6.5933,151.62,151.6,5.26711779]
[1745558528690,28.66711779,151.64,151.6,5.26711779]
[1745558529292,6.5931,151.63,151.6,5.26711779]
[1745558529593,28.66711779,151.64,151.6,5.26711779]
[1745558530293,6.5929,151.63,151.6,5.26711779]
[1745558530993,6.5929,151.63,151.6,11.86121779]
[1745558531994,35.25971779,151.64,151.6,11.86121779]
[1745558532195,6.5926,151.64,151.61,6.5937]
[1745558532492,28.66711779,151.68,151.62,5.26711779]
[1745558532892,23.4,151.68,151.63,6.5926]
[1745558533092,6.5914,151.67,151.63,6.5926]
[1745558533294,6.5914,151.67,151.64,5.26711779]
[1745558533793,6.5916,151.66,151.64,5.26711779]
[1745558536494,6.5913,151.67,151.64,5.26711779]
[1745558537994,6.5916,151.66,151.64,5.26711779]
[1745558540294,6.5913,151.67,151.64,11.85951779]
[1745558546399,29.9908,151.68,151.65,6.592]
[1745558547301,6.5908,151.68,151.65,6.592]
[1745558547707,6.5904,151.69,151.66,11.85861779]
[1745558548100,28.66711779,151.71,151.66,5.26711779]
[1745558548303,30.58571779,151.74,151.7,5.26711779]
[1745558548500,28.66711779,151.74,151.7,5.26711779]
[1745558549403,23.4,151.74,151.7,5.26711779]
[1745558550103,6.5888,151.73,151.7,5.26711779]
[1745558550308,6.5888,151.73,151.7,11.85691779]
[1745558550705,29.9882,151.74,151.72,5.26711779]
[1745558551009,23.4,151.74,151.72,5.26711779]
[1745558552106,6.5885,151.73,151.72,5.26711779]
[1745558552906,6.589,151.72,151.7,5.26711779]
[1745558560312,6.5885,151.73,151.7,11.85691779]
[1745558560714,6.5885,151.73,151.7,5.26711779]
[1745558561208,23.4,151.74,151.7,5.26711779]
[1745558561409,28.66711779,151.74,151.7,5.26711779]
[1745558562313,6.5894,151.71,151.7,5.26711779]
[1745558562613,28.66711779,151.74,151.7,5.26711779]
[1745558562817,6.5889,151.73,151.7,5.26711779]
[1745558563515,6.5882,151.74,151.72,5.26711779]
[1745558565217,6.5877,151.75,151.72,11.85591779]
[1745558565813,6.5877,151.75,151.74,5.26711779]
[1745558568718,6.5873,151.76,151.74,5.26711779]
[1745558572325,6.5869,151.77,151.74,5.26711779]
[1745558573122,6.5869,151.77,151.74,11.85501779]
[1745558574824,6.5873,151.76,151.74,5.26711779]
[1745558580226,6.5873,151.76,151.75,5.26711779]
[1745558584225,6.5866,151.78,151.75,11.85451779]
[1745558584426,23.38,151.82,151.77,5.26711779]
[1745558584626,5.26711779,151.83,151.78,5.26711779]
[1745558584826,28.64711779,151.83,151.78,5.26711779]
[1745558585027,6.5853,151.81,151.78,11.85321779]
[1745558585326,6.5853,151.81,151.78,5.26711779]
[1745558586133,6.5855,151.8,151.78,5.26711779]
[1745558586421,28.64711779,151.83,151.78,5.26711779]
[1745558586728,6.5859,151.79,151.78,5.26711779]
[1745558588531,6.5868,151.77,151.76,5.26711779]
[1745558589028,5.26711779,151.79,151.74,5.26711779]
[1745558589330,5.26711779,151.75,151.7,5.26711779]
[1745558589529,6.5888,151.73,151.7,5.26711779]
[1745558590029,6.5892,151.72,151.7,5.26711779]
[1745558590229,5.26711779,151.75,151.7,5.26711779]
[1745558591330,6.589,151.72,151.7,5.26711779]
[1745558592432,6.5886,151.73,151.7,5.26711779]
[1745558594035,6.589,151.72,151.7,5.26711779]
[1745558595133,6.5886,151.73,151.7,5.26711779]
[1745558596235,6.5886,151.73,151.7,11.85691779]
[1745558597436,6.5882,151.74,151.7,11.85691779]
[1745558598235,6.5886,151.73,151.7,11.85691779]
[1745558599735,6.5881,151.74,151.71,6.5893]
[1745558600332,6.5881,151.74,151.7,11.85661779]
[1745558600933,5.26711779,151.75,151.7,5.26711779]
[1745558601236,5.26711779,151.75,151.69,30.57741779]
[1745558601437,28.62711779,151.75,151.69,30.57741779]
[1745558601636,28.62711779,151.75,151.69,37.16761779]
[1745558601935,28.62711779,151.75,151.69,30.57741779]
[1745558602538,6.5893,151.72,151.69,30.57741779]
[1745558602739,5.26711779,151.73,151.69,30.57741779]
[1745558602937,5.26711779,151.73,151.67,5.26711779]
[1745558603237,6.5901,151.7,151.67,11.85811779]
[1745558603536,5.26711779,151.69,151.62,3.9951]
[1745558603735,6.5918,151.66,151.62,9.26221779]
[1745558604236,6.5918,151.66,151.62,15.85531779]
[1745558606638,6.5918,151.66,151.62,10.5882]
[1745558606937,6.5918,151.66,151.62,15.85531779]
[1745558607131,5.26711779,151.67,151.62,9.26221779]
[1745558607335,5.26711779,151.65,151.61,35.22061779]
[1745558607839,11.85931779,151.65,151.61,35.22061779]
[1745558608938,11.85931779,151.65,151.62,6.5932]
[1745558609336,5.26711779,151.65,151.62,6.5932]
[1745558610639,11.85921779,151.65,151.62,6.5932]
[1745558610844,11.85921779,151.65,151.61,35.22071779]
[1745558611240,5.26711779,151.65,151.61,28.62711779]
[1745558611445,5.26711779,151.65,151.62,6.593]
[1745558611740,6.5917,151.66,151.62,6.593]
[1745558613546,6.5912,151.67,151.63,5.26711779]
[1745558613844,6.5912,151.67,151.65,5.26711779]
[1745558614545,6.5915,151.66,151.63,11.85981779]
[1745558614749,6.5915,151.66,151.63,5.26711779]
[1745558615743,6.5915,151.66,151.62,6.5931]
[1745558615941,5.26711779,151.67,151.61,28.62711779]
[1745558616645,6.5927,151.64,151.61,28.62711779]
[1745558617151,5.26711779,151.67,151.61,28.62711779]
[1745558617351,6.5926,151.64,151.61,28.62711779]
[1745558619550,6.5926,151.64,151.61,35.22081779]
[1745558620951,6.5926,151.64,151.61,23.36]
[1745558621152,6.5929,151.63,151.61,28.62711779]
[1745558621448,5.26711779,151.63,151.58,30.57411779]
[1745558621651,5.26711779,151.61,151.58,1.927]
[1745558621847,5.26711779,151.61,151.57,5.26711779]
[1745558622651,6.5942,151.6,151.57,5.26711779]
[1745558623351,5.26711779,151.61,151.57,5.26711779]
[1745558623853,6.5949,151.59,151.57,5.26711779]
[1745558624154,5.26711779,151.61,151.57,5.26711779]
[1745558625258,6.5946,151.59,151.57,5.26711779]
[1745558627255,6.5942,151.6,151.57,5.26711779]
[1745558627456,6.5942,151.6,151.57,11.86251779]
[1745558628660,6.5942,151.6,151.57,5.26711779]
[1745558628958,28.64711779,151.62,151.57,5.26711779]
[1745558629459,6.595,151.58,151.57,5.26711779]
[1745558629758,28.64711779,151.62,151.57,5.26711779]
[1745558630256,6.5949,151.59,151.57,5.26711779]
[1745558630456,28.64711779,151.62,151.57,5.26711779]
[1745558630657,6.5949,151.59,151.57,5.26711779]
[1745558631257,6.5943,151.6,151.57,5.26711779]
[1745558631457,6.5943,151.6,151.57,11.86241779]
[1745558631658,28.64711779,151.62,151.59,5.26711779]
[1745558631957,28.64711779,151.62,151.59,11.86151779]
[1745558631958,23.38,151.62,151.59,11.86151779]
[1745558632648,29.9734,151.62,151.59,11.86151779]
[1745558633556,6.593,151.63,151.59,11.86151779]
[1745558634861,6.5933,151.62,151.59,11.86151779]
[1745558636451,6.5933,151.62,151.59,5.26711779]
[1745558637259,6.5937,151.61,151.59,5.26711779]
[1745558638461,6.5937,151.62,151.59,5.26711779]
[1745558638761,5.26711779,151.63,151.59,5.26711779]
[1745558639262,6.5938,151.61,151.59,5.26711779]
[1745558640365,6.5941,151.6,151.59,5.26711779]
[1745558640563,5.26711779,151.63,151.57,5.26711779]
[1745558640864,6.5945,151.6,151.57,5.26711779]
[1745558642266,5.26711779,151.63,151.57,5.26711779]
[1745558642867,6.5954,151.58,151.56,5.26711779]
[1745558643365,28.64711779,151.61,151.56,5.26711779]
[1745558643869,5.26711779,151.59,151.53,1.8845]
[1745558644067,5.26711779,151.59,151.53,7.15161779]
[1745558644367,5.26711779,151.59,151.53,13.74851779]
[1745558644569,6.5958,151.57,151.53,13.74851779]
[1745558645270,6.5958,151.57,151.54,6.5967]
[1745558645570,6.5952,151.58,151.54,6.5967]
[1745558646671,28.64711779,151.61,151.57,5.26711779]
[1745558647171,35.24111779,151.61,151.57,11.86231779]
[1745558648268,6.5943,151.6,151.57,5.26711779]
[1745558650171,6.5943,151.6,151.57,11.86241779]
[1745558650472,5.26711779,151.64,151.59,5.26711779]
[1745558650771,28.64711779,151.64,151.59,5.26711779]
[1745558651071,6.5936,151.62,151.59,5.26711779]
[1745558651270,23.38,151.64,151.61,5.26711779]
[1745558652269,28.64711779,151.64,151.59,5.26711779]
[1745558653071,6.5937,151.62,151.59,5.26711779]
[1745558656572,6.5937,151.62,151.59,11.86161779]
[1745558657073,6.5937,151.62,151.59,5.26711779]
[1745558658171,28.64711779,151.64,151.59,5.26711779]
[1745558658371,23.38,151.67,151.63,5.26711779]
[1745558658972,6.5922,151.65,151.63,5.26711779]
[1745558659171,23.38,151.67,151.63,5.26711779]
[1745558659775,6.5921,151.65,151.63,5.26711779]
[1745558661978,6.5924,151.64,151.63,5.26711779]
[1745558662377,23.38,151.67,151.63,5.26711779]
[1745558662679,6.5924,151.64,151.63,5.26711779]
[1745558663276,23.38,151.67,151.62,5.26711779]
[1745558665579,6.5923,151.65,151.62,5.26711779]
[1745558666381,6.5923,151.65,151.62,11.86031779]
[1745558668684,6.5923,151.65,151.62,5.26711779]
[1745558669874,23.38,151.67,151.62,5.26711779]
[1745558670080,5.26711779,151.64,151.6,5.26711779]
[1745558670477,6.5937,151.61,151.6,5.26711779]
[1745558670686,5.26711779,151.64,151.6,5.26711779]
[1745558672689,6.5936,151.62,151.6,5.26711779]
[1745558676093,6.593,151.63,151.6,5.26711779]
[1745558676990,6.5925,151.64,151.62,5.26711779]
[1745558677197,5.26711779,151.66,151.62,5.26711779]
[1745558677393,23.38,151.67,151.62,5.26711779]
[1745558677895,6.5923,151.65,151.62,11.86001779]
[1745558679396,6.5923,151.65,151.62,5.26711779]
[1745558680395,6.5917,151.66,151.62,5.26711779]
[1745558680596,23.38,151.67,151.62,5.26711779]
[1745558680796,6.5922,151.65,151.62,11.86041779]
[1745558681298,23.38,151.67,151.62,5.26711779]
[1745558681494,6.5918,151.66,151.63,6.5928]
[1745558684098,6.592,151.65,151.62,11.86031779]
[1745558686597,6.5917,151.66,151.63,6.5928]
[1745558686799,0.28108,151.75,151.64,5.26711779]
[1745558686997,5.26711779,151.73,151.68,5.26711779]
[1745558687299,6.5901,151.7,151.68,5.26711779]
[1745558688394,5.26711779,151.73,151.68,5.26711779]
[1745558688599,6.5895,151.71,151.68,5.26711779]
[1745558690097,6.5899,151.7,151.68,5.26711779]
[1745558690700,6.5895,151.71,151.68,11.85771779]
[1745558690900,5.26711779,151.73,151.7,5.26711779]
[1745558691100,6.5894,151.71,151.7,5.26711779]
[1745558691602,6.5891,151.72,151.7,5.26711779]
[1745558691799,23.36,151.74,151.7,5.26711779]
[1745558693302,6.5888,151.73,151.7,5.26711779]
[1745558695201,6.5888,151.73,151.7,11.85691779]
[1745558695801,6.5888,151.73,151.72,5.26711779]
[1745558696402,6.5882,151.74,151.72,5.26711779]
[1745558698906,6.5885,151.73,151.72,5.26711779]
[1745558699608,5.26711779,151.75,151.7,5.26711779]
[1745558700509,5.26711779,151.73,151.68,5.26711779]
[1745558701009,6.5898,151.7,151.68,5.26711779]
[1745558701712,6.5895,151.71,151.68,5.26711779]
[1745558702917,6.5895,151.71,151.68,11.85771779]
[1745558703419,6.5895,151.71,151.68,5.26711779]
[1745558704311,6.5895,151.71,151.7,5.26711779]
[1745558705010,5.26711779,151.75,151.7,5.26711779]
[1745558705214,28.62711779,151.77,151.72,5.26711779]
[1745558705516,6.5885,151.73,151.72,5.26711779]
[1745558705818,28.62711779,151.77,151.72,5.26711779]
[1745558706015,5.26711779,151.75,151.7,5.26711779]
[1745558706215,6.5887,151.73,151.7,5.26711779]
[1745558706820,6.5882,151.74,151.7,5.26711779]
[1745558707618,6.5886,151.73,151.7,11.85681779]
[1745558707818,6.5886,151.73,151.72,5.26711779]
[1745558711817,6.5886,151.73,151.71,5.26711779]
[1745558712617,6.5883,151.74,151.71,11.85641779]
[1745558713219,23.36,151.77,151.73,5.26711779]
[1745558713421,23.36,151.77,151.75,5.26711779]
[1745558713615,28.60711779,151.8,151.75,5.26711779]
[1745558715022,6.5868,151.77,151.75,5.26711779]
[1745558715321,28.60711779,151.8,151.75,5.26711779]
[1745558719622,6.587,151.77,151.75,5.26711779]
[1745558721828,6.5872,151.76,151.75,5.26711779]
[1745558723029,6.5872,151.76,151.75,5.21862802]
[1745558725427,5.26711779,151.78,151.72,1.8829]
[1745558725628,5.26711779,151.76,151.7,5.26711779]
[1745558725926,5.26711779,151.74,151.67,3.8829]
[1745558726231,5.26711779,151.74,151.68,5.26711779]
[1745558726730,5.26711779,151.72,151.68,5.26711779]
[1745558726930,6.5902,151.69,151.68,5.26711779]
[1745558727333,5.26711779,151.7,151.66,5.26711779]
[1745558728335,6.5909,151.68,151.66,5.26711779]
[1745558732436,6.5912,151.67,151.65,2.0465]
[1745558732939,6.5916,151.66,151.63,28.60711779]
[1745558733135,6.5916,151.66,151.63,5.26711779]
[1745558735039,6.592,151.65,151.63,5.26711779]
[1745558736642,6.5916,151.66,151.62,6.5932]
[1745558736832,6.5916,151.66,151.63,5.26711779]
[1745558739538,5.26711779,151.67,151.61,5.26711779]
[1745558740545,6.5923,151.65,151.61,5.26711779]
[1745558741338,6.5923,151.65,151.61,11.86061779]
[1745558741744,6.5916,151.66,151.61,5.26711779]
[1745558742044,6.5916,151.66,151.62,6.593]
[1745558743747,6.592,151.65,151.62,6.593]
[1745558745146,6.5917,151.66,151.62,6.593]
[1745558745350,23.34,151.71,151.65,5.26711779]
[1745558745545,23.34,151.71,151.67,5.26711779]
[1745558745746,29.9295,151.71,151.67,5.26711779]
[1745558745946,29.9295,151.71,151.67,11.85801779]
[1745558746251,23.34,151.71,151.67,5.26711779]
[1745558746552,6.5901,151.7,151.67,5.26711779]
[1745558747151,6.5903,151.69,151.67,5.26711779]
[1745558747645,6.5903,151.69,151.66,5.26711779]
[1745558747845,6.5903,151.69,151.64,23.34]
[1745558747846,5.26711779,151.7,151.64,5.26711779]
[1745558748052,5.26711779,151.68,151.63,5.26711779]
[1745558748756,6.5919,151.66,151.63,5.26711779]
[1745558750557,6.5921,151.65,151.63,5.26711779]
[1745558750754,6.5921,151.65,151.62,6.5931]
[1745558750955,5.26711779,151.66,151.61,35.20071779]
[1745558751253,5.26711779,151.66,151.61,28.60711779]